fUST/lending_fUST_20250225
["ID","MTS","AMOUNT","RATE_DAILY","PERIOD"]
[354425049,1740484245674,-502.51022621,0.00065773,7]
[354425050,1740484245683,-500.0,0.00065773,10]
[354425051,1740484245693,-302.20059007,0.00065773,15]
[354425052,1740484245703,-500.0,0.00065773,15]
[354425053,1740484245713,-500.0,0.00065773,7]
[354425054,1740484245723,-106332.31,0.000658,30]
[354425055,1740484245733,-2452.18,0.000658,30]
[354425056,1740484245742,-500.0,0.00065879,120]
[354425057,1740484245826,-2846.39388846,0.000659,16]
[354425058,1740484245836,-1000.0,0.00066005,120]
[354425059,1740484245845,-552.23670387,0.00066016,120]
[354425060,1740484245857,-151.0,0.00066124,2]
[354425061,1740484245867,-160.18509176,0.00066124,2]
[354425062,1740484245877,-500.0,0.00066518,64]
[354425063,1740484245887,-838.0,0.00066518,120]
[354425064,1740484245896,-500.0,0.00066518,120]
[354425065,1740484245907,-150.36,0.00066518,120]
[354425066,1740484245917,-169.29,0.00066518,60]
[354425067,1740484245927,-5000.0,0.00066518,60]
[354425068,1740484245936,-5000.0,0.00066518,60]
[354425069,1740484245945,-1100.0,0.00066597,2]
[354425070,1740484245955,-166.1,0.00066672,2]
[354425071,1740484245965,-1215.0,0.00066738,2]
[354425072,1740484245974,-500.0,0.00066792,64]
[354425073,1740484245984,-838.0,0.00066792,120]
[354425074,1740484245994,-500.0,0.00066792,120]
[354425075,1740484246003,-150.36,0.00066792,120]
[354425076,1740484246013,-914.9566,0.00067066,64]
[354425077,1740484246022,-838.0,0.00067066,120]
[354425078,1740484246032,-500.0,0.00067066,120]
[354425079,1740484246041,-150.36,0.00067066,120]
[354425080,1740484246050,-838.0,0.0006734,120]
[354425081,1740484246060,-939.08312612,0.0006734,120]
[354425082,1740484246069,-292.29804932,0.0006734,120]
[354425083,1740484246079,-838.0,0.00067614,120]
[354425084,1740484246088,-838.0,0.00067888,120]
[354425085,1740484246098,-250.03360803,0.00067899,4]
[354425086,1740484246112,-838.0,0.00068162,120]
[354425087,1740484246122,-838.0,0.00068436,120]
[354425088,1740484246131,-838.0,0.0006871,120]
[354425089,1740484246141,-838.0,0.00068984,120]
[354425090,1740484246151,-947.24,0.000691,30]
[354425091,1740484246162,-838.0,0.00069258,120]
[354425092,1740484246172,-106332.31,0.000693,30]
[354425093,1740484246181,-2452.18,0.000693,30]
[354425094,1740484246191,-838.0,0.00069532,120]
[354425095,1740484246201,-500.0,0.00069769,7]
[354425096,1740484246211,-500.0,0.00069769,15]
[354425097,1740484246221,-500.0,0.00069769,15]
[354425098,1740484246235,-500.0,0.00069769,15]
[354425099,1740484246245,-838.0,0.00069806,120]
[354425100,1740484246254,-152.35481227,0.00069876,15]
[354425101,1740484246264,-622.57102164,0.00069876,2]
[354425103,1740484246274,-838.0,0.0007008,120]
[354425104,1740484246284,-838.0,0.00070354,120]
[354425106,1740484246293,-500.78494653,0.00070604,15]
[354425107,1740484246302,-500.0,0.00070604,15]
[354425108,1740484246313,-838.0,0.00070628,120]
[354425109,1740484246323,-838.0,0.00070902,120]
[354425110,1740484246333,-502.44214416,0.00071152,15]
[354425111,1740484246342,-838.0,0.00071176,120]
[354425112,1740484246355,-253.13847252,0.00071317,10]
[354425113,1740484246365,-838.0,0.0007145,120]
[354425114,1740484246375,-839.0,0.00071723,120]
[354425116,1740484246384,-151.0,0.00072,36]
[354425118,1740484246393,-250.03360803,0.00072899,4]
[354425120,1740484246402,-1243.0,0.0007489,120]
[354425121,1740484246413,-1243.0,0.0007489,120]
[354425123,1740484246423,-1243.0,0.0007489,120]
[354425125,1740484246434,-1243.0,0.0007489,120]
[354425128,1740484246446,-1243.0,0.0007489,120]
[354425130,1740484246460,-1243.0,0.0007489,120]
[354425132,1740484246470,-1243.0,0.0007489,120]
[354425134,1740484246479,-1243.0,0.0007489,120]
[354425136,1740484246489,-1243.0,0.0007489,120]
[354425138,1740484246499,-1243.0,0.0007489,120]
[354425140,1740484246509,-1243.0,0.0007489,120]
[354425142,1740484246518,-1243.0,0.0007489,120]
[354425144,1740484246528,-895.55797493,0.000749,120]
[354425146,1740484246537,-198.64,0.00076249,120]
[354425147,1740484246547,-275.3658873,0.00076537,15]
[354425149,1740484246556,-500.0,0.00076537,15]
[354425151,1740484246566,-1000.0,0.00077085,15]
[354425153,1740484246576,-160.372666,0.00078071,35]
[354425155,1740484246585,-503.9580824,0.00078087,15]
[354425157,1740484246595,-151.0,0.000789,49]
[354425159,1740484246607,-2846.39388829,0.00079141,20]
[354425161,1740484246616,-501.93329769,0.00079471,15]
[354425163,1740484246626,-1000.0,0.00079471,15]
[354425165,1740484246635,-1000.0,0.00079471,10]
[354425167,1740484246645,-400.17803338,0.00079471,15]
[354425169,1740484246654,-1000.0,0.00079471,7]
[354425171,1740484246663,-710.8412796,0.00079822,60]
[354425173,1740484246673,-355.4206398,0.00079822,60]
[354425175,1740484246683,-159.592814,0.00079822,60]
[354425177,1740484246692,-355.4206398,0.00079822,60]
[354425179,1740484246701,-355.4206398,0.00079822,60]
[354425181,1740484246710,-217.1383939,0.00079822,60]
[354425183,1740484246720,-355.4206398,0.00079822,60]
[354425185,1740484246729,-151.0,0.000805,35]
[354425187,1740484246739,-106332.31,0.000813,30]
[354425189,1740484246748,-4203.33945744,0.00082092,2]
[354425191,1740484246758,-1262.34946753,0.00082192,120]
[354425193,1740484246767,-1262.34946753,0.00082192,120]
[354425195,1740484246777,-1262.34946753,0.00082192,120]
[354425197,1740484246786,-1262.34946753,0.00082192,120]
[354425199,1740484246797,-1262.34946753,0.00082192,120]
[354425200,1740484246807,-1262.34946753,0.00082192,120]
[354425201,1740484246816,-1262.34946753,0.00082192,120]
[354425202,1740484246826,-1262.34946753,0.00082192,120]
[354425203,1740484246835,-1262.34946753,0.00082192,120]
[354425204,1740484246845,-1262.34946753,0.00082192,120]
[354425205,1740484246857,-1262.34946753,0.00082192,120]
[354425206,1740484246871,-1262.34946753,0.00082192,120]
[354425207,1740484246880,-1262.34946753,0.00082192,120]
[354425208,1740484246890,-1262.34946753,0.00082192,120]
[354425209,1740484246899,-1262.34946753,0.00082192,120]
[354425210,1740484246909,-1262.34946753,0.00082192,120]
[354425211,1740484246919,-1262.34946753,0.00082192,120]
[354425212,1740484246929,-1262.34946753,0.00082192,120]
[354425213,1740484247009,-1262.34946753,0.00082192,120]
[354425214,1740484247020,-1262.34946753,0.00082192,120]
[354425215,1740484247030,-1262.34946753,0.00082192,120]
[354425216,1740484247039,-1262.34946753,0.00082192,120]
[354425217,1740484247048,-1262.34946753,0.00082192,120]
[354425218,1740484247058,-1262.34946753,0.00082192,120]
[354425219,1740484247067,-1262.34946753,0.00082192,120]
[354425220,1740484247078,-1262.34946753,0.00082192,120]
[354425221,1740484247087,-1262.34946753,0.00082192,120]
[354425222,1740484247096,-1262.34946753,0.00082192,120]
[354425223,1740484247108,-1262.34946753,0.00082192,120]
[354425224,1740484247118,-1262.34946753,0.00082192,120]
[354425225,1740484247127,-1262.34946753,0.00082192,120]
[354425226,1740484247136,-1262.34946753,0.00082192,120]
[354425227,1740484247146,-1262.34946753,0.00082192,120]
[354425228,1740484247155,-1262.34946753,0.00082192,120]
[354425229,1740484247165,-1262.34946753,0.00082192,120]
[354425230,1740484247174,-1262.34946753,0.00082192,120]
[354425231,1740484247184,-1262.34946753,0.00082192,120]
[354425232,1740484247194,-1262.34946753,0.00082192,120]
[354425233,1740484247203,-1262.34946753,0.00082192,120]
[354425234,1740484247213,-1262.34946753,0.00082192,120]
[354425235,1740484247224,-1262.34946753,0.00082192,120]
[354425236,1740484247234,-1262.34946753,0.00082192,120]
[354425237,1740484247246,-1262.34946753,0.00082192,120]
[354425238,1740484247256,-1262.34946753,0.00082192,120]
[354425239,1740484247265,-1262.34946753,0.00082192,120]
[354425240,1740484247274,-1262.34946753,0.00082192,120]
[354425241,1740484247285,-1262.34946753,0.00082192,120]
[354425242,1740484247294,-1262.34946753,0.00082192,120]
[354425243,1740484247304,-1262.34946753,0.00082192,120]
[354425244,1740484247314,-1262.34946753,0.00082192,120]
[354425245,1740484247326,-1262.34946753,0.00082192,120]
[354425246,1740484247336,-1262.34946753,0.00082192,120]
[354425247,1740484247346,-1262.34946753,0.00082192,120]
[354425248,1740484247357,-1262.34946753,0.00082192,120]
[354425249,1740484247367,-1262.34946753,0.00082192,120]
[354425250,1740484247376,-1262.34946753,0.00082192,120]
[354425251,1740484247386,-1262.34946753,0.00082192,120]
[354425252,1740484247396,-1262.34946753,0.00082192,120]
[354425253,1740484247405,-1262.34946753,0.00082192,120]
[354425254,1740484247415,-1262.34946753,0.00082192,120]
[354425255,1740484247425,-1834.90061153,0.00082817,120]
[354425256,1740484247435,-1000.0,0.00083468,7]
[354425257,1740484247444,-504.57497193,0.00083468,60]
[354425258,1740484247454,-1000.0,0.00083468,60]
[354425259,1740484247463,-1834.90061153,0.00083716,120]
[354425260,1740484247472,-20000.0,0.000845,120]
[354425261,1740484247482,-1834.90061153,0.00084615,120]
[354425262,1740484247491,-5000.0,0.00085,120]
[354425263,1740484247501,-1226.52453723,0.00085059,30]
[354425264,1740484247510,-1834.90061153,0.00085514,120]
[354425265,1740484247519,-1834.90061153,0.00086413,120]
[354425266,1740484247529,-1834.90061153,0.00087313,120]
[354425267,1740484247538,-198.64,0.000875,120]
[354425268,1740484247547,-2452.18,0.000875,60]
[354425269,1740484247557,-179.14536344,0.00087912,120]
[354425270,1740484247566,-1834.90061153,0.00088212,120]
[354425271,1740484247575,-1834.90061153,0.00089111,120]
[354425272,1740484247585,-895.55797493,0.000899,120]
[354425273,1740484247594,-500.0,0.00089973,60]
[354425274,1740484247604,-500.0,0.00089973,60]
[354425275,1740484247613,-2000.0,0.0009,120]
[354425276,1740484247623,-100000.0,0.0009,120]
[354425277,1740484247632,-252219.52905214,0.0009,120]
[354425278,1740484247968,-450.05575,0.0009,120]
[354425279,1740484250183,-268.923,0.00065753,120]
[354425280,1740484250199,-3049.277,0.00065753,120]
[354425281,1740484250211,-500.0,0.00065753,2]
[354425282,1740484250223,-1916.6308714,0.00065753,120]
[354425283,1740484250248,-1401.5691286,0.00065753,120]
[354425284,1740484250261,-3318.2,0.00065753,120]
[354425285,1740484250441,-3318.2,0.00065753,120]
[354425286,1740484250453,-3318.2,0.00065753,120]
[354425287,1740484250464,-3318.2,0.00065753,120]
[354425288,1740484250475,-3318.2,0.00065753,120]
[354425289,1740484250487,-3318.2,0.00065753,120]
[354425290,1740484250498,-3318.2,0.00065753,120]
[354425291,1740484250510,-3318.2,0.00065753,120]
[354425292,1740484250520,-3318.2,0.00065753,120]
[354425293,1740484250531,-3318.2,0.00065753,120]
[354425294,1740484250543,-9821.2478714,0.0009,120]
[354425295,1740484251102,-1387.8,0.00065753,120]
[354425296,1740484251118,-1930.4,0.00065753,120]
[354425297,1740484251128,-3318.2,0.00065753,120]
[354425298,1740484251142,-3318.2,0.00065753,120]
[354425299,1740484251152,-3318.2,0.00065753,120]
[354425300,1740484251162,-3318.28090542,0.00065753,120]
[354425301,1740484251171,-500.0,0.00065753,120]
[354425302,1740484251181,-500.0,0.00065753,120]
[354425303,1740484251190,-1440.56050328,0.0009,120]
[354425304,1740484262020,663.0,0.00025457,3]
[354425305,1740484262321,661.0,0.00025457,3]
[354425306,1740484262641,661.0,0.00025457,3]
[354425307,1740484262932,661.0,0.00025457,3]
[354425309,1740484686002,7385.70455609,0.00066516,60]
[354425310,1740484815496,200.0,0.0003,30]
[354425311,1740484935587,500.0,0.00018769,2]
[354425312,1740484952581,169.449231,0.00013699,2]
[354425313,1740484952791,169.449231,0.00027397,2]
[354425314,1740485248151,-232.2937488,0.00046152,120]
[354425315,1740485248177,-497.568557,0.00050952,2]
[354425316,1740485248201,-599.9851552,0.00050952,2]
[354425317,1740485248224,-160.0,0.00050952,2]
[354425318,1740485248246,-1583.44440811,0.00055421,120]
[354425319,1740485248270,-688.55879274,0.00056321,120]
[354425320,1740485248293,-1500.0,0.00056422,120]
[354425321,1740485248316,-1500.0,0.00057242,120]
[354425322,1740485248337,-875.0,0.00057534,120]
[354425323,1740485248359,-1449.19192069,0.00057808,120]
[354425324,1740485251085,-300.80807931,0.00057808,120]
[354425325,1740485251107,-453.17592069,0.00058082,120]
[354425367,1740485433005,-1300.0,0.0005,2]
[354425369,1740485433015,-557.0,0.00051,120]
[354425371,1740485433024,-557.0,0.00051027,120]
[354425373,1740485433034,-557.0,0.00051301,120]
[354425375,1740485433043,-557.0,0.00051575,120]
[354425377,1740485433054,-557.0,0.00051849,120]
[354425379,1740485433064,-557.0,0.00053291,120]
[354425381,1740485433074,-557.0,0.00055956,120]
[354425383,1740485433086,-562.0,0.00055956,120]
[354425384,1740485433106,-700.0,0.00057533,15]
[354425387,1740485433120,-875.0,0.00057534,120]
[354425389,1740485433137,-1750.0,0.00057808,120]
[354425390,1740485433148,-2625.0,0.00058082,120]
[354425393,1740485433160,-557.0,0.00058194,120]
[354425394,1740485433170,-268.0,0.00058356,2]
[354425396,1740485433180,-3500.0,0.00058356,120]
[354425398,1740485433189,-557.0,0.0005862,120]
[354425400,1740485433199,-4375.0,0.0005863,120]
[354425402,1740485433210,-500.0,0.0005885,120]
[354425405,1740485433221,-1086.37,0.0005885,120]
[354425407,1740485433231,-620.96,0.0005885,120]
[354425409,1740485433241,-500.0,0.0005885,120]
[354425410,1740485433252,-956.7,0.0005885,120]
[354425412,1740485433262,-500.0,0.0005885,120]
[354425414,1740485433272,-799.78,0.0005885,120]
[354425415,1740485433281,-500.0,0.0005885,120]
[354425416,1740485433292,-1100.17,0.0005885,120]
[354425417,1740485433302,-500.0,0.0005885,120]
[354425418,1740485433312,-500.0,0.0005885,21]
[354425420,1740485433323,-523.17,0.0005885,120]
[354425422,1740485433334,-2352.71,0.0005885,120]
[354425424,1740485433346,-465.74629197,0.00058851,30]
[354425426,1740485433358,-2656.63429595,0.000589,14]
[354425427,1740485433368,-500.0,0.00058902,120]
[354425428,1740485433378,-500.0,0.00058902,2]
[354425429,1740485433389,-500.0,0.00058902,120]
[354425430,1740485433400,-1839.27,0.00058903,120]
[354425431,1740485433410,-2605.66,0.00058903,120]
[354425432,1740485433420,-500.0,0.00058903,120]
[354425433,1740485433430,-429.73195458,0.00058903,120]
[354425434,1740485433441,-1329.66,0.00058903,120]
[354425435,1740485433451,-500.0,0.00058903,120]
[354425436,1740485433462,-14313.73,0.00058903,120]
[354425437,1740485433473,-1386.02,0.00058903,120]
[354425438,1740485433484,-500.0,0.00058903,120]
[354425439,1740485433495,-588.0,0.00058903,120]
[354425440,1740485433506,-500.0,0.00058903,120]
[354425441,1740485433517,-831.48,0.00058903,120]
[354425442,1740485433527,-500.0,0.00058903,120]
[354425443,1740485433538,-500.0,0.00058903,120]
[354425444,1740485433550,-959.53,0.00058903,120]
[354425445,1740485433561,-500.0,0.00058903,120]
[354425446,1740485433572,-500.0,0.00058903,30]
[354425447,1740485433583,-857.59,0.00058903,120]
[354425448,1740485433596,-2706.68,0.00058903,3]
[354425449,1740485433608,-652.3,0.00058903,120]
[354425450,1740485433620,-5286.16,0.00058903,120]
[354425451,1740485433632,-843.41,0.00058903,120]
[354425452,1740485433644,-500.0,0.00058903,120]
[354425453,1740485433659,-500.0,0.00058903,120]
[354425454,1740485433671,-500.0,0.00058903,120]
[354425455,1740485433685,-1577.56,0.00058903,120]
[354425456,1740485433696,-500.0,0.00058903,120]
[354425457,1740485433708,-718.43,0.00058903,120]
[354425458,1740485433719,-598.47,0.00058903,120]
[354425459,1740485433730,-500.0,0.00058903,120]
[354425460,1740485433739,-500.0,0.00058903,120]
[354425461,1740485433752,-500.0,0.00058903,120]
[354425462,1740485433762,-674.39,0.00058903,120]
[354425463,1740485433772,-596.18,0.00058903,120]
[354425464,1740485433782,-500.0,0.00058903,120]
[354425465,1740485433792,-500.0,0.00058903,120]
[354425466,1740485433802,-919.46,0.00058903,120]
[354425467,1740485433812,-284.903,0.00058904,117]
[354425468,1740485433822,-5250.0,0.00058904,120]
[354425469,1740485433831,-321.37483843,0.00059173,15]
[354425470,1740485433842,-500.0,0.00059173,15]
[354425471,1740485433853,-596.29786114,0.00059173,14]
[354425472,1740485433863,-500.0,0.00059173,15]
[354425473,1740485433873,-500.0,0.00059173,15]
[354425474,1740485433883,-500.0,0.00059173,15]
[354425475,1740485433893,-500.27923535,0.00059173,2]
[354425476,1740485433903,-162.22460857,0.00059173,14]
[354425477,1740485433914,-523.648248,0.00059173,7]
[354425478,1740485433924,-252.02176337,0.00059173,15]
[354425479,1740485433933,-500.0,0.00059173,15]
[354425480,1740485433944,-503.46962786,0.00059173,15]
[354425481,1740485433955,-500.0,0.00059173,12]
[354425482,1740485433965,-523.17,0.00059176,120]
[354425483,1740485433975,-523.17,0.00059176,120]
[354425484,1740485433985,-523.17,0.00059176,120]
[354425485,1740485433995,-500.0,0.00059177,120]
[354425486,1740485434005,-500.0,0.00059177,120]
[354425487,1740485434015,-500.0,0.00059177,120]
[354425488,1740485434025,-500.0,0.00059177,30]
[354425489,1740485434035,-1014.42,0.00059177,120]
[354425490,1740485434044,-640.12505134,0.00059177,120]
[354425491,1740485434055,-500.0,0.00059177,120]
[354425492,1740485434065,-500.0,0.00059177,120]
[354425493,1740485434075,-500.0,0.00059177,120]
[354425494,1740485434085,-500.0,0.00059177,120]
[354425495,1740485434095,-500.0,0.00059177,120]
[354425496,1740485434109,-500.0,0.00059177,120]
[354425497,1740485434119,-500.0,0.00059177,120]
[354425498,1740485434128,-500.0,0.00059177,120]
[354425499,1740485434139,-500.0,0.00059177,120]
[354425500,1740485434148,-500.0,0.00059177,120]
[354425501,1740485434158,-500.0,0.00059177,120]
[354425502,1740485434167,-500.0,0.00059177,120]
[354425503,1740485434177,-500.0,0.00059177,2]
[354425504,1740485434187,-500.0,0.00059177,120]
[354425505,1740485434197,-502.93914129,0.00059177,120]
[354425506,1740485434207,-500.0,0.00059177,120]
[354425507,1740485434218,-250.0,0.00059177,120]
[354425508,1740485434228,-500.0,0.00059177,120]
[354425509,1740485434238,-500.0,0.00059177,120]
[354425510,1740485434248,-500.0,0.00059177,120]
[354425511,1740485434259,-500.38948692,0.00059177,120]
[354425512,1740485434269,-500.0,0.00059177,120]
[354425513,1740485434279,-500.0,0.00059177,120]
[354425514,1740485434289,-500.0,0.00059177,120]
[354425515,1740485434300,-613.4761521,0.00059177,120]
[354425516,1740485434310,-500.0,0.00059177,120]
[354425517,1740485434414,-500.0,0.00059177,120]
[354425518,1740485434424,-500.0,0.00059177,120]
[354425519,1740485434435,-500.0,0.00059177,120]
[354425520,1740485434446,-500.0,0.00059177,120]
[354425521,1740485434456,-500.0,0.00059177,120]
[354425522,1740485434466,-36926.2,0.00059177,6]
[354425523,1740485434476,-500.0,0.00059177,120]
[354425524,1740485434486,-500.0,0.00059177,120]
[354425525,1740485434496,-500.0,0.00059177,120]
[354425526,1740485434506,-500.0,0.00059177,120]
[354425527,1740485434516,-500.0,0.00059177,120]
[354425528,1740485434526,-1053.35,0.00059177,120]
[354425529,1740485434536,-509.77509971,0.00059177,120]
[354425530,1740485434546,-500.0,0.00059177,120]
[354425531,1740485434556,-500.0,0.00059177,120]
[354425532,1740485434565,-500.0,0.00059177,120]
[354425533,1740485434575,-500.0,0.00059177,120]
[354425534,1740485434584,-578.89,0.00059177,120]
[354425535,1740485434594,-500.0,0.00059177,120]
[354425536,1740485434605,-500.0,0.00059177,120]
[354425537,1740485434615,-500.0,0.00059177,120]
[354425538,1740485434624,-500.0,0.00059177,120]
[354425539,1740485434634,-500.0,0.00059177,120]
[354425540,1740485434643,-500.0,0.00059177,120]
[354425541,1740485434655,-500.0,0.00059177,120]
[354425542,1740485434667,-1999.03,0.00059177,120]
[354425543,1740485434676,-500.0,0.00059177,120]
[354425544,1740485434685,-1172.97,0.00059177,120]
[354425545,1740485434695,-500.71311713,0.00059177,120]
[354425546,1740485434704,-500.0,0.00059177,120]
[354425547,1740485434715,-500.0,0.00059177,120]
[354425548,1740485434724,-500.0,0.00059177,120]
[354425549,1740485434734,-500.0,0.00059177,120]
[354425550,1740485434744,-500.0,0.00059177,120]
[354425551,1740485434754,-548.26,0.00059177,120]
[354425552,1740485434765,-500.0,0.00059177,120]
[354425553,1740485434775,-500.0,0.00059177,120]
[354425554,1740485434784,-1939.25,0.00059177,120]
[354425555,1740485434794,-500.0,0.00059177,120]
[354425556,1740485434803,-500.0,0.00059177,120]
[354425557,1740485434813,-500.0,0.00059177,120]
[354425558,1740485434823,-500.45804232,0.00059177,120]
[354425559,1740485434832,-500.0,0.00059177,120]
[354425560,1740485434842,-500.0,0.00059177,120]
[354425561,1740485434852,-257.04340586,0.00059177,120]
[354425562,1740485434863,-500.0,0.00059177,120]
[354425563,1740485434872,-500.0,0.00059177,120]
[354425564,1740485434881,-500.0,0.00059177,120]
[354425565,1740485434891,-500.0,0.00059177,120]
[354425566,1740485434900,-500.0,0.00059177,120]
[354425567,1740485434910,-500.0,0.00059177,120]
[354425568,1740485434919,-500.0,0.00059177,120]
[354425569,1740485434929,-500.0,0.00059177,120]
[354425570,1740485434938,-500.0,0.00059177,120]
[354425571,1740485434948,-6398.6,0.00059177,120]
[354425572,1740485434957,-500.0,0.00059177,30]
[354425573,1740485434967,-500.0,0.00059177,120]
[354425574,1740485434977,-500.0,0.00059177,120]
[354425575,1740485434986,-536.99,0.00059177,120]
[354425576,1740485434995,-500.0,0.00059177,120]
[354425577,1740485435005,-500.0,0.00059177,120]
[354425578,1740485435015,-500.0,0.00059177,120]
[354425579,1740485435025,-654.9,0.00059177,120]
[354425580,1740485435034,-500.0,0.00059177,120]
[354425581,1740485435043,-365.88737586,0.00059177,120]
[354425582,1740485435052,-500.0,0.00059177,120]
[354425583,1740485435062,-503.00178069,0.00059177,120]
[354425584,1740485435071,-500.0,0.00059177,120]
[354425585,1740485435080,-622.80668311,0.00059177,120]
[354425586,1740485435090,-177373.63,0.00059177,7]
[354425587,1740485435101,-500.0,0.00059177,120]
[354425588,1740485435111,-1429.57,0.00059177,120]
[354425589,1740485435121,-500.0,0.00059177,120]
[354425590,1740485435130,-500.0,0.00059177,120]
[354425591,1740485435139,-500.0,0.00059177,120]
[354425592,1740485435148,-609.5,0.00059177,120]
[354425593,1740485435158,-500.0,0.00059177,120]
[354425594,1740485435169,-500.0,0.00059177,120]
[354425595,1740485435178,-504.39772406,0.00059177,120]
[354425596,1740485435188,-500.0,0.00059177,120]
[354425597,1740485435198,-648.21518709,0.00059177,120]
[354425598,1740485435207,-500.0,0.00059177,120]
[354425599,1740485435217,-500.0,0.00059177,120]
[354425600,1740485435226,-502.73680723,0.00059177,120]
[354425601,1740485435235,-3033.53,0.00059177,120]
[354425602,1740485435245,-500.0,0.00059177,120]
[354425603,1740485435255,-500.0,0.00059177,120]
[354425604,1740485435265,-500.0,0.00059177,120]
[354425605,1740485435274,-500.0,0.00059177,120]
[354425606,1740485435284,-500.0,0.00059177,120]
[354425607,1740485435293,-523.36,0.00059177,120]
[354425608,1740485435303,-500.0,0.00059177,120]
[354425609,1740485435313,-500.53372305,0.00059177,30]
[354425610,1740485435322,-500.0,0.00059177,120]
[354425611,1740485435331,-500.0,0.00059177,120]
[354425612,1740485435341,-500.0,0.00059177,120]
[354425613,1740485435351,-510.31,0.00059177,120]
[354425614,1740485435361,-511.33354085,0.00059177,120]
[354425615,1740485435370,-500.0,0.00059177,120]
[354425616,1740485435380,-500.0,0.00059177,120]
[354425617,1740485435390,-516.97337856,0.00059177,2]
[354425618,1740485435400,-500.0,0.00059177,120]
[354425619,1740485435410,-500.0,0.00059177,120]
[354425620,1740485435420,-884.39,0.00059177,120]
[354425621,1740485435430,-500.0,0.00059177,120]
[354425622,1740485435440,-500.0,0.00059177,120]
[354425623,1740485435450,-1351.64,0.00059177,120]
[354425624,1740485435459,-500.0,0.00059177,120]
[354425625,1740485435469,-500.74471077,0.00059177,120]
[354425626,1740485435479,-500.0,0.00059177,120]
[354425627,1740485435488,-500.0,0.00059177,120]
[354425628,1740485435498,-500.0,0.00059177,120]
[354425629,1740485435507,-1374.68,0.00059177,120]
[354425630,1740485435517,-500.0,0.00059177,120]
[354425631,1740485435527,-503.26141904,0.00059177,120]
[354425632,1740485435536,-500.0,0.00059177,120]
[354425633,1740485435545,-500.0,0.00059177,120]
[354425634,1740485435555,-500.0,0.00059177,120]
[354425635,1740485435564,-194.69525563,0.00059177,120]
[354425636,1740485435574,-500.0,0.00059177,120]
[354425637,1740485435584,-1393.49,0.00059177,120]
[354425638,1740485435594,-504.45646631,0.00059177,120]
[354425639,1740485435605,-500.0,0.00059177,120]
[354425640,1740485435616,-500.0,0.00059177,120]
[354425641,1740485435625,-500.0,0.00059177,120]
[354425642,1740485435635,-500.0,0.00059177,7]
[354425643,1740485435644,-602.23,0.00059177,120]
[354425644,1740485435654,-4727.75,0.00059177,120]
[354425645,1740485435664,-500.0,0.00059177,120]
[354425646,1740485435676,-500.0,0.00059177,120]
[354425647,1740485435686,-500.0,0.00059177,120]
[354425648,1740485435696,-500.0,0.00059177,120]
[354425649,1740485435707,-500.41839505,0.00059177,120]
[354425650,1740485435717,-632.22115406,0.00059177,120]
[354425651,1740485435727,-500.0,0.00059177,120]
[354425652,1740485435738,-27881.57668888,0.00059177,120]
[354425653,1740485435755,-8172.69331112,0.00059177,120]
[354425654,1740485435765,-597.46209863,0.00059177,120]
[354425655,1740485435775,-500.0,0.00059177,120]
[354425656,1740485435785,-500.0,0.00059177,120]
[354425657,1740485435795,-500.0,0.00059177,120]
[354425658,1740485435805,-500.0,0.00059177,120]
[354425659,1740485435815,-500.0,0.00059177,120]
[354425660,1740485435904,-528.01,0.00059177,120]
[354425661,1740485435914,-500.0,0.00059177,120]